Cogmind - Beta 16.1 @@@ ROGUE MODE // 2026.03.16 @ 14:43:43 Player: Ragnakor Result: Destroyed by D-53 Grenadier with Mini Grenade Launcher Performance ------------- Evolutions (1) 500 Regions Visited (3) 600 Robots Destroyed (44) 220 Value Destroyed (706) 706 Prototype IDs (1) 20 Alien Tech Used (0) 0 Bonus (0) 0 TOTAL SCORE: 2046 Bonus ------- None Cogmind --------- Core Integrity 0/400 Matter 283/300 Energy 100/100 System Corruption 1% Temperature Cool (0) Movement Core (100) Ox1 Location -9/Mines Parts ------- > --- POWER (1) -------- (None) > --- PROPULSION (4) --- (None) > --- UTILITY (2) ------ Small Storage Unit Signal Interpreter > --- WEAPON (2) ------- (None) > --- INVENTORY (8) ---- Visual Processing Unit Sensor Array Signal Interpreter Terrain Scan Processor Hacking Suite Peak State ------------ > --- POWER ------------ Ion Engine > --- PROPULSION ------- Aluminum Leg Aluminum Leg Improved Aluminum Leg Improved Aluminum Leg > --- UTILITY ---------- Small Storage Unit Signal Interpreter > --- WEAPON ----------- Rocket Launcher Rocket Launcher > --- INVENTORY -------- Improved Aluminum Leg Visual Processing Unit Sensor Array Signal Interpreter Terrain Scan Processor Hacking Suite [Rating: 14] Favorites ----------- Power Ion Engine Engine Ion Engine Propulsion Aluminum Leg Leg Aluminum Leg Flight Unit Flight Unit Utility Small Storage Unit Device Seismic Detector Storage Small Storage Unit Processor Signal Interpreter Weapon Rocket Launcher Energy Cannon Advanced Beam Cannon Ballistic Gun Assault Rifle Launcher Rocket Launcher Slashing Weapon Axe Build | -11 -10 -9 -9 ------- Run | Yrd Mat Mat Min Slots Evolved 2 | . . 2 . Power . | . . . . Propulsion 2 | . . 2 . Utility . | . . . . Weapon . | . . . . Parts Attached 34 | 7 4 20 3 Power 7 | 1 3 2 1 Engine 7 | 1 3 2 1 Core . | . . . . Reactor . | . . . . Propulsion 12 | 2 . 10 . Treads . | . . . . Leg 5 | 2 . 3 . Wheel . | . . . . Hover . | . . . . Flight 7 | . . 7 . Utility 4 | 2 . 1 1 Device 1 | 1 . . . Storage 2 | 1 . . 1 Processor 1 | . . 1 . Hackware . | . . . . Protection . | . . . . Artifact . | . . . . Weapon 11 | 2 1 7 1 Energy Gun . | . . . . Energy Cannon 1 | . . 1 . Ballistic Gun 4 | 2 . 2 . Ballistic Cannon . | . . . . Launcher 5 | . 1 3 1 Special Weapon . | . . . . Impact Weapon . | . . . . Slashing Weapon 1 | . . 1 . Piercing Weapon . | . . . . Special Melee Weapon . | . . . . Unidentified Prototypes 1 | . . 1 . Parts Lost 24 | . 1 14 9 Power 4 | . 1 2 1 Propulsion 12 | . . 7 5 Utility 1 | . . 1 . Weapon 7 | . . 4 3 Highest Loss Streak 9 | . 1 9 5 To Critical Strikes . | . . . . Average Backups 5 | 1 6 5 5 Power . | . . . . Propulsion 1 | . 2 1 . Utility 2 | . . 3 5 Weapon 1 | . 2 . . Tool/Special . | . . . . Unused Backups 6 | . 1 . 5 Power . | . . . . Propulsion 1 | . 1 . . Utility 5 | . . . 5 Weapon . | . . . . Tool/Special . | . . . . Average Slot Usage (%) 88 | . 100 82 80 Engine 10 | . 14 10 7 Leg 25 | . 28 14 36 Flight 5 | . . 18 . Device 6 | . 14 2 . Storage 12 | . 14 11 11 Processor 4 | . . 6 11 Ballistic Gun 9 | . 19 4 . Launcher 11 | . 8 13 14 Peak Build Rating 14 | 7 7 14 14 Average Rating 8 | 5 6 9 11 On Entrance 7 | . 7 7 14 Avg Prop Armor Cover (%) 3 | . . 3 . Naked Turns . | . . . . Heaviest Build 18 | 14 16 18 18 Greatest Support 46 | 20 20 46 46 Greatest Overweight (x) 4 | 4 . 3 1 Average Overweight (x) . | . . . . Largest Inventory Capacity 8 | 8 8 8 8 Average Capacity 7 | 7 8 8 8 Most Carried 8 | 3 8 8 7 Average Carried 5 | 1 6 5 5 Final Capacity 8 | 8 8 8 8 Final Carried 8 | 2 8 6 5 Class Distribution -------------------- 93% | Mutant 3% | Scavenger-Sprinter Dominant Class ---------------- Mutant | -10/Materials Mutant | -9/Materials Mutant | -9/Mines Resources | -11 -10 -9 -9 ----------- Run | Yrd Mat Mat Min Matter Collected 970 | 279 241 319 131 Remotely . | . . . . Salvage Created 1107 | 163 399 372 173 Parts 79 | 11 34 26 8 Haulers Intercepted 1 | . . 1 . Recyclers Shooed . | . . . . Parts Field Recycled . | . . . . Retrieved Matter . | . . . . Parts Self-Destructed . | . . . . Prevented . | . . . . Parts Restored . | . . . . Kills | -11 -10 -9 -9 ------- Run | Yrd Mat Mat Min Combat Hostiles Destroyed 43 | . 12 10 21 Melee 1 | . . . 1 Guns 6 | . 5 1 . Cannons 1 | . . 1 . AOE 35 | . 7 8 20 Classes Destroyed 11 | 2 5 3 1 Worker 1 | . . 1 . Builder 2 | . 1 . 1 Tunneler 5 | 5 . . . Hauler 1 | . . 1 . Recycler 7 | 1 2 3 1 Mechanic 2 | . 1 1 . Operator 1 | . 1 . . Swarmer 15 | . 6 6 3 Grunt 6 | . 6 . . Sentry 4 | . . 4 . Assembled 18 | . . . 18 Best Kill Streak 17 | 6 5 7 17 Combat Bots Only 17 | . 3 6 17 Max Kills in Single Turn 8 | 1 3 2 8 Gunslinging . | . . . . Exploded 8 | . 2 2 8 Melee 1 | . . . 1 Uniques/NPCs Destroyed . | . . . . Combat | -11 -10 -9 -9 -------- Run | Yrd Mat Mat Min Hostile Shots Fired 195 | . 39 94 62 Missed 70 | . 15 36 19 Hits 125 | . 24 58 43 Melee 1 | . . . 1 Projectile 124 | . 24 58 42 AOE 3 | . . . 3 Critical Strikes 3 | . . 3 . Damage Taken 2126 | . 317 938 871 Core 459 | . 46 162 251 Absorbed by Shields . | . . . . Core Remaining (%) 90 | 100 81 . . Volleys Fired 83 | 18 31 26 8 Largest 2 | 2 2 2 2 Hottest 88 | 40 50 88 66 Shots Fired 153 | 36 60 44 13 Gun 98 | 36 47 15 . Cannon 7 | . . 7 . Launcher 48 | . 13 22 13 Special . | . . . . Kinetic 98 | 36 47 15 . Thermal 7 | . . 7 . Explosive 48 | . 13 22 13 Electromagnetic . | . . . . Robot Hit Streak 21 | 9 8 21 1 Robot Miss Streak 5 | 2 5 3 4 Penetration Max . | . . . . Secondary Targets 1 | . . 1 . Max Gunslinging Chain 1 | . . 1 . Shots Hit Robots 77 | 19 32 24 2 Core Hits 106 | 9 29 27 41 Critical Kills . | . . . . Critical Parts Destroyed . | . . . . Critical Strikes . | . . . . Melee Attacks . | . . . . Impact . | . . . . Slashing . | . . . . Piercing . | . . . . Sneak Attacks . | . . . . Combat Hostiles . | . . . . Follow-up Attacks . | . . . . Damage Inflicted 3218 | 226 775 826 1391 Guns 667 | 226 297 144 . Cannons 103 | . . 103 . Explosions 2332 | . 467 565 1300 Melee . | . . . . Ramming 116 | . 11 14 91 Kinetic 667 | 226 297 144 . Thermal 123 | . 20 103 . Explosive 2312 | . 447 565 1300 Electromagnetic . | . . . . Impact . | . . . . Slashing . | . . . . Piercing . | . . . . Highest Corruption 1 | . . . 1 Average Corruption 1 | . . . 1 Corruption Purged . | . . . . Corruption Blocked . | . . . . Overload Shots . | . . . . Overflow Damage 52 | . 6 7 39 Projectiles 1 | . . 1 . Explosions 51 | . 6 6 39 Melee . | . . . . Knockbacks . | . . . . Impact . | . . . . Kinetic . | . . . . Secondary . | . . . . Self-Inflicted Damage 418 | . 86 155 177 Shots 18 | . 5 8 5 Rammed 17 | . . 3 14 Targets Rammed 58 | . 1 3 54 Kicked 41 | . 1 . 40 Crushed . | . . . . Highest Temperature 63 | . 12 63 1 Average Temperature 14 | . 5 17 1 Received Heat Transfer 408 | . 72 276 60 Siege Activations . | . . . . Martial Activations . | . . . . Shielding Activations . | . . . . Robots Disrupted . | . . . . Combat Hostiles . | . . . . Robots Corrupted . | . . . . Combat Hostiles . | . . . . Parts Fried . | . . . . Impact Corruptions . | . . . . Robots Melted . | . . . . Combat Hostiles . | . . . . Parts Melted . | . . . . Heat Transferred 235 | . 50 185 . Parts Sabotaged . | . . . . Parts Stolen . | . . . . Parts Stripped . | . . . . Power Chain Reactions . | . . . . Alert | -11 -10 -9 -9 ------- Run | Yrd Mat Mat Min Maximum Alert Level 1 | . 1 . . Low Security (%) 85 | 100 60 100 100 Level 1 14 | . 39 . . Level 2 . | . . . . Level 3 . | . . . . Level 4 . | . . . . Level 5 . | . . . . High Security . | . . . . Max Security . | . . . . Peak Influence 299 | 10 299 166 102 Initial 109 | . . 109 44 Average 94 | 1 134 125 38 Influence Increases 1150 | 30 450 502 168 Destroy 0b10 Robot/C 500 | . 240 200 60 Destroy 0b10 Robot/NC 95 | 30 25 30 10 Destroy Leader 102 | . 30 62 10 Successful Hack 50 | . 17 33 . Disable Machine 60 | . 30 30 . Destroy Structure 313 | . 108 117 88 Partial Spotted 15 | . . 15 . Lose Combat Pursuer 15 | . . 15 . Influence Decreases 1150 | 30 191 646 283 Entered New Map 221 | . . 150 71 Time Decay 567 | 30 181 206 150 Lost Part 212 | . 10 140 62 Purge Threat 150 | . . 150 . Squads Dispatched 2 | . 2 . . Investigation 1 | . 1 . . Extermination . | . . . . Reinforcement 1 | . 1 . . Assault . | . . . . Garrison . | . . . . Intercept . | . . . . Searches Triggered . | . . . . Construction Impeded . | . . . . Haulers Reinforced . | . . . . Active Scanning Responses . | . . . . Cargo Convoy Interrupts . | . . . . Stealth | -11 -10 -9 -9 --------- Run | Yrd Mat Mat Min Distress Signals 2 | . 1 1 . Communications Jammed . | . . . . Distress Signals . | . . . . Times Spotted 55 | . 16 15 24 Peak Tracking Total 17 | . 4 12 17 Tactical Retreats 2 | . . 1 1 Traps | -11 -10 -9 -9 ------- Run | Yrd Mat Mat Min Traps Triggered 1 | . 1 . . Indirectly . | . . . . Trap Hack Attempts . | . . . . Triggered . | . . . . Disarmed . | . . . . Reprogrammed . | . . . . Reused . | . . . . Traps Extracted . | . . . . Installed . | . . . . Triggered . | . . . . Machines | -11 -10 -9 -9 ---------- Run | Yrd Mat Mat Min Machines Disabled 4 | . 2 2 . Max in Single Turn 1 | . 1 1 . Machines Repaired . | . . . . Machines Dismantled . | . . . . Machines Sabotaged . | . . . . Overloaded Fab Kills . | . . . . Hacking | -11 -10 -9 -9 --------- Run | Yrd Mat Mat Min Machines Accessed 9 | . 3 6 . Terminals 9 | . 3 6 . Fabricators . | . . . . Repair Stations . | . . . . Recycling Units . | . . . . Scanalyzers . | . . . . Garrison Access . | . . . . Total Hacks 34 | . 9 25 . Successful 14 | . 3 11 . Failed 20 | . 6 14 . Catastrophic 1 | . 1 . . Database Lockouts . | . . . . Manual 27 | . 9 18 . Terminals 34 | . 9 25 . Fabricators . | . . . . Repair Stations . | . . . . Recycling Units . | . . . . Scanalyzers . | . . . . Garrison Access . | . . . . Terminal Hacks 5 | . . 5 . Terminal Index 1 | . . 1 . Unreport Threat 1 | . . 1 . Recall Investigation 1 | . . 1 . Hauler Manifests 1 | . . 1 . Registered Components 1 | . . 1 . Fabricator Hacks . | . . . . Repair Station Hacks . | . . . . Recycling Unit Hacks . | . . . . Scanalyzer . | . . . . Garrison Access Hacks . | . . . . Unauthorized Hacks 9 | . 3 6 . Terminals 9 | . 3 6 . Assimilate 1 | . . 1 . Botnet 6 | . 2 4 . Operators 1 | . 1 . . Skim 1 | . . 1 . Fabricators . | . . . . Repair Stations . | . . . . Recycling Units . | . . . . Scanalyzers . | . . . . Garrison Access . | . . . . Data Cores Recovered . | . . . . Used . | . . . . Hacking Detections 9 | . 3 6 . Full Trace Events . | . . . . Feedback Events . | . . . . Feedback Blocked . | . . . . Robot Schematics Acquired . | . . . . Robots Built . | . . . . Authchips . | . . . . Time . | . . . . Total Robot Build Rating . | . . . . Part Schematics Acquired . | . . . . Parts Built . | . . . . Authchips . | . . . . Time . | . . . . Total Part Build Rating . | . . . . Part Studies Acquired . | . . . . Parts Repaired . | . . . . Time . | . . . . Parts Recycled . | . . . . Recycled Matter . | . . . . Retrieved Matter . | . . . . Retrieved Components . | . . . . Parts Scanalyzed . | . . . . Part Schematics Acquired . | . . . . Parts Damaged . | . . . . Bothacking | -11 -10 -9 -9 ------------ Run | Yrd Mat Mat Min Used RIF Installer . | . . . . Robots Hacked . | . . . . Non-combat . | . . . . Combat . | . . . . Robot Hacks Applied . | . . . . Relay Couplers Released . | . . . . Fabnet Peak Effective % . | . . . . Robots Rewired . | . . . . Allies Hacked . | . . . . Hacks Repelled . | . . . . Allies | -11 -10 -9 -9 -------- Run | Yrd Mat Mat Min Total Allies . | . . . . Largest Group . | . . . . Highest-Rated Group . | . . . . Highest-Rated Ally . | . . . . Total Orders . | . . . . Ally Attacks . | . . . . Total Damage . | . . . . Kills . | . . . . Allies Corrupted . | . . . . Allies Melted . | . . . . Intel | -11 -10 -9 -9 ------- Run | Yrd Mat Mat Min Active Infowar (turns) 660 | 42 536 82 . Seismic 660 | 42 536 82 . Robot Analysis Total . | . . . . Derelict Logs Recovered . | . . . . Drone Launches . | . . . . Drone Recoveries . | . . . . Exploration | -11 -10 -9 -9 ------------- Run | Yrd Mat Mat Min Turns Passed 1492 | 157 536 430 369 Spaces Moved 1046 | 67 360 391 228 Core 17 | 6 . . 11 Treads . | . . . . Legs 783 | 61 360 145 217 Wheels . | . . . . Hover . | . . . . Flight 246 | . . 246 . Fastest Speed 31 | 50 120 31 100 Average Speed 106 | 141 120 81 119 Slowest Speed 280 | 250 120 280 120 Overloaded Moves . | . . . . Propulsion Burnouts . | . . . . Robots Hopped . | . . . . Potential Cave-ins 1 | . . . 1 Cave-ins Triggered . | . . . . Exploration Rate (%) 38 | 3 60 42 50 Regions Visited 3 Branch Regions 1 Pre-discovered Areas . | . . . . Known Exits Taken 1 | . . 1 . Unknown Exits Taken 2 | 1 1 . . Scrap Searched 1 | . . . 1 Spaces Dug . | . . . . Terrain Destroyed 425 | . 111 176 138 Melee . | . . . . Projectile . | . . . . AOE 425 | . 111 176 138 Terrain Rammed . | . . . . Walls Destroyed . | . . . . Machines Disabled . | . . . . Actions | -11 -10 -9 -9 --------- Run | Yrd Mat Mat Min Total 1252 | 94 406 448 304 Wait 11 | . 3 . 8 Move 1043 | 66 359 390 228 Hop . | . . . . Pick Up 16 | 3 7 5 1 Fast Attach 15 | 6 . 9 . Attach 11 | 1 1 7 2 Detach . | . . . . Swap 12 | . 3 7 2 Drop 3 | . 1 1 1 Fire 83 | 18 31 26 8 Melee . | . . . . Ram 17 | . . 3 14 Kick 41 | . 1 . 40 Crush . | . . . . Escape Stasis . | . . . . Rewire . | . . . . Trap . | . . . . Miscellaneous . | . . . . Route ------- -11/Scrapyard -10/Materials (discovered 2 exits: *Mat x2) -9/Materials (discovered 4 exits: *Mat x2 / *Min / [*Sto]) -9/Mines (discovered 1 exit: *Mat) History --------- Turn | Location | Event 2 | -11/Scrapyard | Met Revision 17 23 | -11/Scrapyard | Discovered new exit (range 15) 158 | -11/Scrapyard | Entered Materials 289 | -10/Materials | Discovered new exit (range 3) 311 | -10/Materials | Build established: Mutant 527 | -10/Materials | Discovered new exit (range 5) 694 | -10/Materials | Entered another Materials area 694 | -9/Materials | Evolved 2 slots: Propulsion x2 724 | -9/Materials | Discovered new exit (range 12) 733 | -9/Materials | Discovered new exit (range 11) 820 | -9/Materials | Lost 9 parts (1p4n1u3w) 917 | -9/Materials | Lost 3 parts (2n1w) 952 | -9/Materials | Discovered new exit (range 8) 1011 | -9/Materials | Discovered new exit (range 13) 1025 | -9/Materials | Identified exit to Mines 1124 | -9/Materials | Entered Mines 1154 | -9/Mines | Discovered new exit (range 5) 1164 | -9/Mines | Identified exit to Materials 1201 | -9/Mines | Received a Rocket Launcher from a helpful Derelict 1290 | -9/Mines | Found a hidden stash of uninstalled traps 1344 | -9/Mines | Assembled infested the area 1367 | -9/Mines | Core integrity fell below 50% 1389 | -9/Mines | Destroyed 17 combat bots 1419 | -9/Mines | Lost 5 parts (1p2n2w) 1461 | -9/Mines | Core integrity fell below 20% 1493 | -9/Mines | Destroyed by D-53 Grenadier with Mini Grenade Launcher Last Messages --------------- 01440_ Kicked as-48064 out of the way. 01442_ Kicked as-48064. 01443_ Kicked as-48064 out of the way. 01446_ Kicked as-48064. 01448_ Kicked as-48064 out of the way. 01450_ Kicked as-48064. 01452_ Imp. Aluminum Leg destroyed. 01453_ Kicked as-48064. 01459_ Kicked as-48064 out of the way. 01460_ Kicked as-48064. 01466_ Kicked as-48064 out of the way. 01467_ Kicked as-48064. 01468_ Imp. Aluminum Leg destroyed. 01468_ Slammed into as-48064. 01477_ Destabilizing: System interference. 01477_ Signal Interpreter temporarily disabled. 01478_ Slammed into as-48064. 01481_ as-48064 destroyed. 01481_ Destabilizing: System corrupted (+1). 01491_ Seismic Survey Station disabled. Map ----- +----------------------------------------------------+ | | | | | | | | | | | | | | | | | | | | | | | | | | | | | | | | | | | | | | | ???????????????????????????????????????????? | | ???????????????????####??###########???????? | | ?????????????????### "#??# #???????? | | ???????????????# # % #### " """ #???????? | | ???????????????# < # """ #???????? | | ???????????????# """ #???????? | | #??????????????## @ #???????? | | #????########## """ #???????? | | #???## # ## d """ #???????? | | #???# # # # d """ #???????? | | ##### % # #???????? | | !! k # ##### #######???????? | | ##### # # # ## #????##?????????????? | | ????# # ### #???????????????????? | | ????# ## ## #####?# ???????????????????? | | ????######## #???? ??????????????????? | | ???????????# #??? #?????????????????? | | ???????????## #?? #?????????????????? | | ????????????# ? ?????????????????? | | ????????????# ?????????????????? | | ???????????? ????????????????? | | ???????????? """ ## ????????????????? | | ???????????? """ ##?# ?????????????????? | | ???????????? ??? #??? ???????????????????? | | ???????????????????????????????????????????? | | ???????????????????????????????????????????? | | ???????????????????????????????????????????? | | ???????????????????????????????????????????? | | ???????????????????????????????????????????? | | ???????????????????????????????????????????? | | ???????????????????????????????????????????? | +----------------------------------------------------+ Best States ------------- Heat Dissipation 28 Energy Generation 10 Energy Capacity 250 Matter Stores 300 Matter Capacity 300 Sight Range 16 Terrain Scan Density 10 Evasion (%) 63 Item Schematics ----------------- None Robot Schematics ------------------ None Fabricated ------------ Nothing Repaired ---------- Nothing Studied --------- None Alien Tech Used ----------------- None Achievements -------------- Quick And Dirty You Again Challenges ------------ None Game ------ Seed DisruptorTowerCarapace Manual? 0 Play Time 00:18:02 Cumulative 32.9 hours Start 2026.03.16 @ 14:26:45 End 2026.03.16 @ 14:43:43 Sessions 1 Manual Loads 0 Difficulty Rogue Special Mode None Game No. 62 Rogue 62 Adventurer 0 Explorer 0 Win Type - Total 0 Types 0/0/0/0/0/0/0/0/0/0 Lore% 29 Gallery% 25 Achievement% 23 Wizard Run 0 Options --------- Layout 1 ASCII 0 Keyboard 0 Movement Numpad Keybinds 0 Fullscreen 1 Font 24/Smallcaps Map View 50x35 Zoom Use 0% Tactical HUD 1 Map Filters NONE Filters NONE Steam 1 RUN: 9d58f99f-abfc-4a0b-83d5-26ef131f39d3